fUSD/lending_fUSD_20240327
["ID","MTS","AMOUNT","RATE_DAILY","PERIOD"]
[320730587,1711539088958,-558.52,0.00056164,120]
[320730588,1711539088967,-537.16385715,0.00056164,120]
[320730589,1711539088977,-7133.78,0.00056164,120]
[320730590,1711539088986,-579.76,0.00056164,120]
[320730591,1711539088995,-500.0,0.00056164,120]
[320730592,1711539089005,-1944.43,0.00056164,120]
[320730593,1711539089015,-500.0,0.00056164,120]
[320730594,1711539089024,-6097.44,0.00056164,120]
[320730595,1711539089034,-5109.09,0.00056164,120]
[320730596,1711539089043,-545.62,0.00056164,120]
[320730597,1711539089054,-663.4,0.00056164,120]
[320730598,1711539089063,-500.0,0.00056164,120]
[320730599,1711539089073,-500.0,0.00056164,120]
[320730600,1711539089082,-22670.34,0.00056164,120]
[320730601,1711539089091,-2453.89,0.00056164,120]
[320730602,1711539089101,-500.0,0.00056164,120]
[320730603,1711539089111,-7956.37,0.00056164,120]
[320730604,1711539089120,-2612.82,0.00056164,120]
[320730605,1711539089130,-1096.81,0.00056164,120]
[320730606,1711539089139,-2520.37,0.00056164,120]
[320730607,1711539089148,-225.34,0.00056164,120]
[320730608,1711539089158,-628.48,0.00056164,120]
[320730609,1711539089167,-1032.54,0.00056164,120]
[320730610,1711539089178,-500.0,0.00056164,120]
[320730611,1711539089187,-357.12,0.00056164,120]
[320730612,1711539089197,-3753.0,0.00056164,120]
[320730613,1711539089207,-2884.81,0.00056164,120]
[320730614,1711539089217,-500.0,0.00056164,120]
[320730615,1711539089226,-5025.57,0.00056164,120]
[320730616,1711539089235,-9397.34,0.00056164,120]
[320730617,1711539089245,-43977.12,0.00056164,120]
[320730618,1711539089258,-500.0,0.00056164,120]
[320730619,1711539089268,-7954.08,0.00056164,120]
[320730620,1711539089277,-500.0,0.00056164,120]
[320730621,1711539089286,-500.0,0.00056164,120]
[320730622,1711539089297,-500.0,0.00056164,120]
[320730623,1711539089306,-832.53,0.00056164,120]
[320730624,1711539089315,-5423.8,0.00056164,120]
[320730625,1711539089325,-5589.81,0.00056164,120]
[320730626,1711539089337,-3477.52,0.00056164,120]
[320730627,1711539089348,-500.0,0.00056164,120]
[320730628,1711539089358,-3295.4,0.00056164,120]
[320730629,1711539089369,-500.0,0.00056164,120]
[320730630,1711539089379,-79143.13,0.00056164,120]
[320730631,1711539089390,-4233.1,0.00056164,120]
[320730632,1711539089400,-1554.43,0.00056164,120]
[320730633,1711539089413,-500.0,0.00056164,120]
[320730634,1711539089423,-21230.92,0.00056164,120]
[320730635,1711539089433,-1796.45,0.00056164,120]
[320730636,1711539089444,-1488.59,0.00056164,120]
[320730637,1711539089456,-1590.82,0.00056164,120]
[320730638,1711539089466,-4270.02,0.00056164,120]
[320730639,1711539089476,-1416.51,0.00056164,120]
[320730640,1711539089486,-1436.29,0.00056164,120]
[320730641,1711539089497,-500.0,0.00056164,120]
[320730642,1711539089507,-1000.0,0.00056164,14]
[320730643,1711539089517,-4828.26,0.00056164,120]
[320730644,1711539089527,-2733.23,0.00056164,120]
[320730645,1711539089536,-2699.02,0.00056164,120]
[320730646,1711539089546,-4103.23,0.00056164,120]
[320730647,1711539089556,-794.6,0.00056164,120]
[320730648,1711539089566,-2649.26,0.00056164,120]
[320730649,1711539089576,-500.0,0.00056164,120]
[320730650,1711539089586,-3406.52,0.00056164,120]
[320730651,1711539089596,-1067.47,0.00056164,120]
[320730652,1711539089606,-500.0,0.00056164,120]
[320730653,1711539089616,-1008.05,0.00056164,120]
[320730654,1711539089625,-532.43,0.00056164,120]
[320730655,1711539089635,-500.0,0.00056164,120]
[320730656,1711539089645,-3326.63,0.00056164,120]
[320730657,1711539089655,-949.03,0.00056164,120]
[320730658,1711539089665,-13832.31,0.00056164,120]
[320730659,1711539089675,-333.96859994,0.00056164,120]
[320730660,1711539089684,-500.0,0.00056164,120]
[320730661,1711539089694,-5725.46,0.00056164,120]
[320730662,1711539089704,-1080.08,0.00056164,120]
[320730663,1711539089719,-638.55,0.00056164,120]
[320730664,1711539089728,-500.0,0.00056164,120]
[320730665,1711539089738,-532.1,0.00056164,120]
[320730666,1711539089747,-868.21,0.00056164,120]
[320730667,1711539089757,-3178.59,0.00056164,120]
[320730668,1711539089767,-1914.32,0.00056164,120]
[320730669,1711539089776,-5718.22,0.00056164,120]
[320730670,1711539089787,-500.0,0.00056164,120]
[320730671,1711539089797,-1510.54,0.00056164,120]
[320730672,1711539089806,-6090.95,0.00056164,120]
[320730673,1711539089815,-500.0,0.00056164,120]
[320730674,1711539089825,-2368.29,0.00056164,120]
[320730675,1711539089834,-1975.68,0.00056164,120]
[320730676,1711539089845,-2626.24,0.00056164,120]
[320730677,1711539089854,-826.27,0.00056164,120]
[320730678,1711539089864,-5971.8,0.00056164,120]
[320730679,1711539089873,-6306.66,0.00056164,120]
[320730680,1711539089882,-3796.34,0.00056164,120]
[320730681,1711539089892,-3897.67,0.00056164,120]
[320730682,1711539089901,-500.0,0.00056164,120]
[320730683,1711539089910,-2196.71,0.00056164,120]
[320730684,1711539089920,-1053.73,0.00056164,120]
[320730685,1711539089930,-500.0,0.00056164,7]
[320730686,1711539089939,-2509.66,0.00056164,120]
[320730687,1711539089949,-500.0,0.00056164,120]
[320730688,1711539089959,-2090.88,0.00056164,120]
[320730689,1711539089968,-500.0,0.00056164,120]
[320730690,1711539089978,-3728.83,0.00056164,120]
[320730691,1711539089988,-14051.88,0.00056164,120]
[320730692,1711539089998,-5336.71,0.00056164,120]
[320730693,1711539090007,-508.56,0.00056164,120]
[320730694,1711539090017,-431.96,0.00056164,120]
[320730695,1711539090027,-6046.1,0.00056164,120]
[320730696,1711539090036,-1400.16,0.00056164,120]
[320730697,1711539090046,-6749.09,0.00056164,120]
[320730698,1711539090056,-1020.49,0.00056164,120]
[320730699,1711539090066,-3525.02,0.00056164,120]
[320730700,1711539090075,-9670.8,0.00056164,120]
[320730701,1711539090085,-2244.9,0.00056164,120]
[320730702,1711539090094,-4278.93,0.00056164,120]
[320730703,1711539090105,-500.0,0.00056164,120]
[320730704,1711539090115,-5002.55,0.00056164,120]
[320730705,1711539090124,-500.0,0.00056164,120]
[320730706,1711539090133,-500.0,0.00056164,120]
[320730707,1711539090143,-5599.22,0.00056164,120]
[320730708,1711539090153,-1319.68,0.00056164,120]
[320730709,1711539090163,-4145.52,0.00056164,120]
[320730710,1711539090173,-1033.96,0.00056164,120]
[320730711,1711539090183,-8690.1,0.00056164,120]
[320730712,1711539090193,-759.99,0.00056164,120]
[320730713,1711539090203,-3689.75,0.00056164,120]
[320730714,1711539090215,-500.0,0.00056164,120]
[320730715,1711539090225,-938.28,0.00056164,120]
[320730716,1711539090235,-3289.32,0.00056164,120]
[320730717,1711539090246,-773.1,0.00056164,120]
[320730718,1711539090258,-670.41,0.00056164,120]
[320730719,1711539090271,-8474.88,0.00056164,120]
[320730720,1711539090282,-684.84,0.00056164,120]
[320730721,1711539090292,-16950.66,0.00056164,120]
[320730722,1711539090303,-991.15,0.00056164,120]
[320730723,1711539090314,-5480.38,0.00056164,120]
[320730724,1711539090324,-500.0,0.00056164,120]
[320730725,1711539090334,-3421.26,0.00056164,120]
[320730726,1711539090346,-649.49,0.00056164,120]
[320730727,1711539090356,-500.0,0.00056164,120]
[320730728,1711539090524,-1159.66,0.00056164,120]
[320730729,1711539090553,-2172.19,0.00056164,120]
[320730730,1711539090563,-2895.84,0.00056164,120]
[320730731,1711539090574,-20784.38,0.00056164,120]
[320730732,1711539090584,-4740.83,0.00056164,120]
[320730733,1711539090594,-2732.75,0.00056164,120]
[320730734,1711539090604,-17160.48,0.00056164,120]
[320730735,1711539090614,-886.33,0.00056164,120]
[320730736,1711539090623,-672.63,0.00056164,120]
[320730737,1711539090633,-6247.3,0.00056164,120]
[320730738,1711539090643,-5091.09,0.00056164,21]
[320730739,1711539090653,-500.0,0.00056164,120]
[320730740,1711539090663,-8381.34,0.00056164,120]
[320730741,1711539090673,-584.47,0.00056164,120]
[320730742,1711539090683,-4086.57,0.00056164,120]
[320730743,1711539090693,-2273.07,0.00056164,120]
[320730744,1711539090704,-2370.47,0.00056164,120]
[320730745,1711539090715,-19292.32,0.00056164,120]
[320730746,1711539090726,-2960.24,0.00056164,120]
[320730747,1711539090736,-1173.99,0.00056164,120]
[320730748,1711539090747,-500.0,0.00056164,120]
[320730749,1711539090758,-500.0,0.00056164,85]
[320730750,1711539090768,-2202.57,0.00056164,120]
[320730751,1711539090778,-12410.62,0.00056164,120]
[320730752,1711539090789,-3278.85,0.00056164,120]
[320730753,1711539090799,-3354.16,0.00056164,120]
[320730754,1711539090808,-8798.58,0.00056164,120]
[320730755,1711539090818,-876.94,0.00056164,120]
[320730756,1711539090828,-168.7,0.00056164,120]
[320730757,1711539090838,-3583.19,0.00056164,120]
[320730758,1711539090848,-895.2,0.00056164,120]
[320730759,1711539090858,-500.0,0.00056164,120]
[320730760,1711539090868,-500.0,0.00056164,120]
[320730761,1711539090878,-500.0,0.00056164,120]
[320730762,1711539090888,-1845.88,0.00056164,120]
[320730763,1711539090898,-937.27,0.00056164,120]
[320730764,1711539090908,-1083.78,0.00056164,120]
[320730765,1711539090918,-3201.11,0.00056164,120]
[320730766,1711539090928,-2638.24,0.00056164,120]
[320730767,1711539090938,-1388.52,0.00056164,120]
[320730768,1711539090947,-4892.27,0.00056164,120]
[320730769,1711539090957,-459.37459458,0.00056164,120]
[320730770,1711539090967,-2480.34,0.00056164,120]
[320730771,1711539090977,-1350.19,0.00056164,120]
[320730772,1711539090990,-3142.36,0.00056164,120]
[320730773,1711539090999,-2180.01,0.00056164,120]
[320730774,1711539091009,-1470.53,0.00056164,120]
[320730775,1711539091019,-500.0,0.00056164,120]
[320730776,1711539091028,-500.0,0.00056164,120]
[320730777,1711539091038,-500.0,0.00056164,120]
[320730778,1711539091048,-505.71,0.00056164,120]
[320730779,1711539091057,-1659.22,0.00056164,120]
[320730780,1711539091067,-8083.93,0.00056164,120]
[320730781,1711539091077,-500.0,0.00056164,120]
[320730782,1711539091087,-2931.63,0.00056164,120]
[320730783,1711539091097,-2901.36,0.00056164,120]
[320730784,1711539091106,-541.86,0.00056164,120]
[320730785,1711539091116,-4166.77,0.00056164,120]
[320730786,1711539091126,-3516.57,0.00056164,120]
[320730787,1711539091135,-571.02,0.00056164,120]
[320730788,1711539091146,-10990.32,0.00056164,120]
[320730789,1711539091157,-1139.26,0.00056164,120]
[320730790,1711539091167,-151.0,0.00056164,120]
[320730791,1711539091178,-686.73,0.00056164,120]
[320730792,1711539091188,-1716.32,0.00056164,120]
[320730793,1711539091198,-500.0,0.00056164,120]
[320730794,1711539091209,-2230.4,0.00056164,120]
[320730795,1711539091218,-1803.38,0.00056164,120]
[320730796,1711539091227,-2528.02,0.00056164,120]
[320730797,1711539091236,-151.0,0.00056184,2]
[320730798,1711539091247,-636.50981946,0.00056278,120]
[320730799,1711539091256,-268.38,0.000563,120]
[320730800,1711539091269,-945.0,0.000563,35]
[320730801,1711539091279,-494.0,0.000563,46]
[320730802,1711539091289,-1470.187407,0.000563,103]
[320730803,1711539091299,-150.0,0.00056339,120]
[320730804,1711539091309,-1107.90831877,0.00056384,120]
[320730805,1711539091320,-282.33678653,0.00056384,120]
[320730806,1711539091331,-303.12040052,0.00056384,120]
[320730807,1711539091342,-500.0,0.00056388,90]
[320730808,1711539091352,-157.032715,0.00056398,109]
[320730809,1711539091361,-200.0,0.00056398,120]
[320730810,1711539091371,-800.0,0.00056398,120]
[320730811,1711539091380,-200.0,0.00056398,120]
[320730812,1711539091390,-500.0,0.00056398,120]
[320730813,1711539091400,-200.0,0.00056398,120]
[320730814,1711539091410,-155.71,0.000564,8]
[320730815,1711539091419,-155.71,0.000564,8]
[320730816,1711539091429,-155.71,0.000564,8]
[320730817,1711539091440,-507.0,0.00056411,120]
[320730818,1711539091449,-2000.0,0.00056438,120]
[320730819,1711539091460,-895.23,0.00056438,120]
[320730820,1711539091470,-575.28,0.00056438,120]
[320730821,1711539091481,-500.0,0.00056438,120]
[320730822,1711539091491,-500.0,0.00056438,120]
[320730823,1711539091501,-500.0,0.00056438,120]
[320730824,1711539091511,-339.52,0.00056438,120]
[320730825,1711539091521,-368.8,0.00056438,120]
[320730826,1711539091530,-500.0,0.00056438,120]
[320730827,1711539091541,-563.96,0.00056438,120]
[320730828,1711539091551,-500.0,0.00056438,120]
[320730829,1711539091560,-500.0,0.00056438,120]
[320730830,1711539091570,-570.02,0.00056438,120]
[320730831,1711539091583,-500.0,0.00056438,120]
[320730832,1711539091593,-151.0,0.00056438,120]
[320730833,1711539091603,-500.0,0.00056438,120]
[320730834,1711539091613,-551.49,0.00056438,120]
[320730835,1711539091623,-500.0,0.00056438,120]
[320730836,1711539091633,-500.0,0.00056438,120]
[320730837,1711539091643,-500.0,0.00056438,120]
[320730838,1711539091653,-355.2,0.00056438,120]
[320730839,1711539091662,-500.0,0.00056438,120]
[320730840,1711539091672,-500.0,0.00056438,120]
[320730841,1711539091682,-500.0,0.00056438,120]
[320730842,1711539091691,-500.0,0.00056438,120]
[320730843,1711539091701,-500.0,0.00056438,120]
[320730844,1711539091712,-976.2,0.00056438,120]
[320730845,1711539091721,-500.0,0.00056438,120]
[320730846,1711539091731,-500.0,0.00056438,120]
[320730847,1711539091741,-531.34,0.00056438,120]
[320730848,1711539091752,-500.0,0.00056438,120]
[320730849,1711539091761,-500.0,0.00056438,120]
[320730850,1711539091770,-500.0,0.00056438,120]
[320730851,1711539091780,-575.24,0.00056438,120]
[320730852,1711539091790,-500.0,0.00056438,120]
[320730853,1711539091800,-551.61560999,0.00056438,120]
[320730854,1711539091809,-500.0,0.00056438,120]
[320730855,1711539091820,-500.0,0.00056438,120]
[320730856,1711539091829,-503.38,0.00056438,120]
[320730857,1711539091839,-500.0,0.00056438,120]
[320730858,1711539091848,-544.36,0.00056438,120]
[320730859,1711539091858,-656.62,0.00056438,120]
[320730860,1711539091868,-643.2,0.00056438,120]
[320730861,1711539091877,-786.05,0.00056438,120]
[320730862,1711539091887,-1108.32,0.00056438,120]
[320730863,1711539091896,-500.0,0.00056438,120]
[320730864,1711539091906,-500.0,0.00056438,120]
[320730865,1711539091915,-500.0,0.00056438,120]
[320730866,1711539091925,-500.0,0.00056438,120]
[320730867,1711539091934,-500.0,0.00056438,120]
[320730868,1711539091943,-582.28,0.00056438,120]
[320730869,1711539091952,-500.0,0.00056438,120]
[320730870,1711539091962,-500.0,0.00056438,120]
[320730871,1711539091972,-500.0,0.00056438,120]
[320730872,1711539091981,-500.0,0.00056438,120]
[320730873,1711539091991,-540.44,0.00056438,120]
[320730874,1711539092000,-500.0,0.00056438,120]
[320730875,1711539092009,-500.0,0.00056438,120]
[320730876,1711539092018,-500.0,0.00056438,120]
[320730877,1711539092028,-500.0,0.00056438,120]
[320730878,1711539092038,-500.0,0.00056438,120]
[320730879,1711539092047,-500.0,0.00056438,120]
[320730880,1711539092056,-293.70161672,0.00056438,120]
[320730881,1711539092066,-500.0,0.00056438,120]
[320730882,1711539092075,-500.0,0.00056438,120]
[320730883,1711539092084,-500.0,0.00056438,120]
[320730884,1711539092094,-500.0,0.00056438,120]
[320730885,1711539092104,-172.47292259,0.00056438,120]
[320730886,1711539092114,-500.0,0.00056438,120]
[320730887,1711539092123,-500.0,0.00056438,120]
[320730888,1711539092132,-500.0,0.00056438,120]
[320730889,1711539092141,-650.65,0.00056438,120]
[320730890,1711539092150,-500.0,0.00056438,120]
[320730891,1711539092159,-278.467826,0.00056438,120]
[320730892,1711539092168,-500.0,0.00056438,120]
[320730893,1711539092177,-163.2,0.00056438,120]
[320730894,1711539092187,-666.49,0.00056438,120]
[320730895,1711539092196,-500.0,0.00056438,120]
[320730896,1711539092206,-512.61,0.00056438,120]
[320730897,1711539092217,-500.0,0.00056438,120]
[320730898,1711539092226,-500.0,0.00056438,120]
[320730899,1711539092235,-500.0,0.00056438,120]
[320730900,1711539092244,-500.0,0.00056438,120]
[320730901,1711539092253,-500.0,0.00056438,120]
[320730902,1711539092265,-500.0,0.00056438,120]
[320730903,1711539092275,-500.0,0.00056438,120]
[320730904,1711539092284,-610.66,0.00056438,120]
[320730905,1711539092295,-544.48,0.00056438,120]
[320730906,1711539092304,-500.0,0.00056438,120]
[320730907,1711539092313,-500.0,0.00056438,120]
[320730908,1711539092322,-500.0,0.00056438,120]
[320730909,1711539092331,-1264.52,0.00056438,120]
[320730910,1711539092341,-564.14,0.00056438,120]
[320730911,1711539092350,-617.82,0.00056438,120]
[320730912,1711539092360,-151.0,0.00056438,14]
[320730913,1711539092370,-832.09,0.00056438,120]
[320730914,1711539092379,-921.37,0.00056438,120]
[320730915,1711539092388,-695.47,0.00056438,120]
[320730916,1711539092398,-1458.74,0.00056438,120]
[320730917,1711539092407,-500.0,0.00056438,120]
[320730918,1711539092416,-1146.87,0.00056438,120]
[320730919,1711539092426,-500.0,0.00056438,120]
[320730920,1711539092435,-597.38,0.00056438,120]
[320730921,1711539092444,-2719.96,0.00056438,120]
[320730922,1711539092454,-500.0,0.00056438,120]
[320730923,1711539092464,-1170.95,0.00056438,120]
[320730924,1711539092473,-500.0,0.00056438,120]
[320730925,1711539092482,-500.0,0.00056438,120]
[320730926,1711539092492,-1986.6,0.00056438,120]
[320730927,1711539092502,-884.38,0.00056438,120]
[320730928,1711539092511,-1057.95,0.00056438,120]
[320730929,1711539092521,-151.0,0.00056438,30]
[320730930,1711539092531,-500.0,0.00056438,120]
[320730931,1711539092541,-616.91,0.00056438,120]
[320730932,1711539092550,-537.22,0.00056438,120]
[320730933,1711539092559,-533.04,0.00056438,120]
[320730934,1711539092568,-702.45,0.00056438,120]
[320730935,1711539092578,-5471.51,0.00056438,120]
[320730936,1711539092588,-587.11,0.00056438,120]
[320730937,1711539092598,-500.0,0.00056438,120]
[320730938,1711539092607,-500.0,0.00056438,120]
[320730939,1711539092617,-500.0,0.00056438,120]
[320730940,1711539092626,-2128.3,0.00056438,120]
[320730941,1711539092636,-500.0,0.00056438,120]
[320730942,1711539092645,-500.0,0.00056438,120]
[320730943,1711539092654,-500.0,0.00056438,120]
[320730944,1711539092663,-961.96,0.00056438,120]
[320730945,1711539092673,-792.02,0.00056438,120]
[320730946,1711539092682,-613.31,0.00056438,120]
[320730947,1711539092691,-1258.8,0.00056438,120]
[320730948,1711539092700,-931.2,0.00056438,120]
[320730949,1711539092711,-663.5,0.00056438,120]
[320730950,1711539092721,-500.0,0.00056438,120]
[320730951,1711539092731,-1126.29,0.00056438,120]
[320730952,1711539092740,-905.93,0.00056438,120]
[320730953,1711539092749,-151.0,0.00056438,120]
[320730954,1711539092758,-596.37,0.00056438,120]
[320730955,1711539092767,-500.0,0.00056438,120]
[320730956,1711539092776,-204.05655516,0.00056438,120]
[320730957,1711539092785,-500.0,0.00056438,120]
[320730958,1711539092795,-1145.15,0.00056438,120]
[320730959,1711539092804,-1047.43,0.00056438,120]
[320730960,1711539092813,-500.0,0.00056438,120]
[320730961,1711539092823,-1079.19,0.00056438,120]
[320730962,1711539092832,-151.0,0.00056438,120]
[320730963,1711539092841,-500.0,0.00056438,120]
[320730964,1711539092852,-500.0,0.00056438,120]
[320730965,1711539092861,-500.0,0.00056438,120]
[320730966,1711539092870,-500.0,0.00056438,120]
[320730967,1711539092880,-151.0,0.00056438,120]
[320730968,1711539092889,-1050.1,0.00056438,120]
[320730969,1711539092898,-500.0,0.00056438,120]
[320730970,1711539092907,-391.45035586,0.00056438,120]
[320730971,1711539092917,-668.88,0.00056438,120]
[320730972,1711539092989,-798.22,0.00056438,120]
[320730973,1711539092999,-500.0,0.00056438,120]
[320730974,1711539093008,-865.88,0.00056438,120]
[320730975,1711539093018,-500.0,0.00056438,120]
[320730976,1711539093027,-500.0,0.00056438,120]
[320730977,1711539093036,-500.0,0.00056438,120]
[320730978,1711539093046,-500.0,0.00056438,120]
[320730979,1711539093055,-805.48,0.00056438,120]
[320730980,1711539093066,-698.77,0.00056438,120]
[320730981,1711539093075,-895.29,0.00056438,120]
[320730982,1711539093085,-2904.63,0.00056438,120]
[320730983,1711539093094,-500.0,0.00056438,120]
[320730984,1711539093104,-575.0,0.00056438,120]
[320730985,1711539093114,-1059.6,0.00056438,120]
[320730986,1711539093123,-624.76,0.00056438,120]
[320730987,1711539093132,-566.16,0.00056438,120]
[320730988,1711539093142,-500.0,0.00056438,120]
[320730989,1711539093151,-500.0,0.00056438,120]
[320730990,1711539093161,-500.0,0.00056438,120]
[320730991,1711539093171,-596.27,0.00056438,120]
[320730992,1711539093180,-511.44,0.00056438,120]
[320730993,1711539093189,-500.0,0.00056438,120]
[320730994,1711539093198,-2461.83,0.00056438,120]
[320730995,1711539093207,-670.39,0.00056438,120]
[320730996,1711539093217,-500.0,0.00056438,120]
[320730997,1711539093226,-1096.84,0.00056438,120]
[320730998,1711539093235,-730.57,0.00056438,120]
[320730999,1711539093245,-526.24,0.00056438,120]
[320731000,1711539093254,-500.0,0.00056438,120]
[320731001,1711539093265,-813.47,0.00056438,120]
[320731002,1711539093274,-500.0,0.00056438,120]
[320731003,1711539093283,-982.22,0.00056438,120]
[320731004,1711539093292,-2323.15,0.00056438,120]
[320731005,1711539093301,-952.22,0.00056438,120]
[320731006,1711539093310,-1090.65,0.00056438,120]
[320731007,1711539093319,-2118.58,0.00056438,120]
[320731008,1711539093329,-819.74,0.00056438,120]
[320731009,1711539093339,-344.55,0.00056438,120]
[320731010,1711539093349,-500.0,0.00056438,120]
[320731011,1711539093358,-500.0,0.00056438,120]
[320731012,1711539093367,-500.0,0.00056438,120]
[320731013,1711539093377,-455.38937021,0.00056438,120]
[320731014,1711539093387,-500.0,0.00056438,120]
[320731015,1711539093396,-680.58,0.00056438,120]
[320731016,1711539093406,-1006.99,0.00056438,120]
[320731017,1711539093415,-500.0,0.00056438,120]
[320731018,1711539093425,-2012.56,0.00056438,120]
[320731019,1711539093434,-500.0,0.00056438,120]
[320731020,1711539093444,-525.09,0.00056438,120]
[320731021,1711539093454,-1027.05,0.00056438,120]
[320731022,1711539093464,-775.63,0.00056438,120]
[320731023,1711539093475,-909.15,0.00056438,120]
[320731024,1711539093485,-669.48,0.00056438,120]
[320731025,1711539093495,-2014.61,0.00056438,120]
[320731026,1711539093505,-500.0,0.00056438,120]
[320731027,1711539093515,-613.39,0.00056438,30]
[320731028,1711539093525,-225.48,0.00056438,120]
[320731029,1711539093535,-500.0,0.00056438,120]
[320731030,1711539093545,-670.15,0.00056438,120]
[320731031,1711539093555,-320.14,0.00056438,120]
[320731032,1711539093564,-500.0,0.00056438,120]
[320731033,1711539093573,-613.0,0.00056438,120]
[320731034,1711539093583,-500.0,0.00056438,120]
[320731035,1711539093593,-741.01,0.00056438,120]
[320731036,1711539093602,-715.82,0.00056438,120]
[320731037,1711539093611,-156.54,0.00056438,120]
[320731038,1711539093621,-693.91,0.00056438,120]
[320731039,1711539093631,-500.0,0.00056438,120]
[320731040,1711539093640,-500.0,0.00056438,120]
[320731041,1711539093650,-1436.63,0.00056438,120]
[320731042,1711539093659,-788.63,0.00056438,120]
[320731043,1711539093668,-500.0,0.00056438,120]
[320731044,1711539093677,-500.0,0.00056438,120]
[320731045,1711539093687,-500.0,0.00056438,120]
[320731046,1711539093696,-852.33,0.00056438,120]
[320731047,1711539093705,-500.0,0.00056438,120]
[320731048,1711539093715,-500.0,0.00056438,120]
[320731049,1711539093724,-608.04,0.00056438,120]
[320731050,1711539093734,-500.0,0.00056438,120]
[320731051,1711539093743,-632.68,0.00056438,120]
[320731052,1711539093752,-500.0,0.00056438,120]
[320731053,1711539093761,-524.62,0.00056438,120]
[320731054,1711539093771,-620.43,0.00056438,120]
[320731055,1711539093780,-818.9,0.00056438,120]
[320731056,1711539093789,-2063.63,0.00056438,120]
[320731057,1711539093799,-1004.28,0.00056438,120]
[320731058,1711539093808,-2011.71,0.00056438,120]
[320731059,1711539093818,-807.51,0.00056438,120]
[320731060,1711539093827,-500.0,0.00056438,120]
[320731061,1711539093836,-500.0,0.00056438,120]
[320731062,1711539093845,-500.0,0.00056438,120]
[320731063,1711539093854,-500.0,0.00056438,120]
[320731064,1711539093864,-763.33,0.00056438,120]
[320731065,1711539093874,-755.18,0.00056438,120]
[320731066,1711539093883,-487.81,0.00056438,120]
[320731067,1711539093893,-500.0,0.00056438,120]
[320731068,1711539093902,-842.7,0.00056438,120]
[320731069,1711539093911,-713.05,0.00056438,120]
[320731070,1711539093920,-2308.15,0.00056438,120]
[320731071,1711539093929,-500.0,0.00056438,120]
[320731072,1711539093939,-500.0,0.00056438,120]
[320731073,1711539093948,-500.0,0.00056438,120]
[320731074,1711539093958,-500.0,0.00056438,120]
[320731075,1711539093968,-676.12,0.00056438,120]
[320731076,1711539093977,-500.0,0.00056438,120]
[320731077,1711539093986,-849.59,0.00056438,120]
[320731078,1711539093998,-500.0,0.00056438,120]
[320731079,1711539094007,-500.0,0.00056438,120]
[320731080,1711539094016,-677.22,0.00056438,120]
[320731081,1711539094025,-500.0,0.00056438,120]
[320731082,1711539094034,-500.0,0.00056438,120]
[320731083,1711539094044,-500.0,0.00056438,120]
[320731084,1711539094053,-597.62,0.00056438,120]
[320731085,1711539094063,-800.48,0.00056438,120]
[320731086,1711539094072,-988.02,0.00056438,120]